[Event "Titled Tuesday Blitz August 17 2021"]
[White "Tari, Aryan"]
[Black "Sengupta, Deep"]
[WhiteFideId "1510045"]
[BlackFideId "5008352"]
[WhiteElo "2656"]
[BlackElo "2347"]
[Result "1-0"]
[Round "03"]
[TimeControl "180+1"]
[Date "2021.08.17"]
[WhiteClock "0:00:18"]
[BlackClock "0:00:02"]

1. e4 {[%clk 0:02:58]}  c5 {[%clk 0:02:55]} 2. Nc3 {[%clk 0:02:53]}  Nc6 {[%clk 0:02:51]} 3. f4 {[%clk 0:02:53]}  g6 {[%clk 0:02:50]} 4. Nf3 {[%clk 0:02:54]}  Bg7 {[%clk 0:02:50]} 5. Bb5 {[%clk 0:02:54]}  d6 {[%clk 0:02:48]} 6. Bxc6+ {[%clk 0:02:53]}  bxc6 {[%clk 0:02:48]} 7. d3 {[%clk 0:02:54]}  Nf6 {[%clk 0:02:41]} 8. h3 {[%clk 0:02:50]}  O-O {[%clk 0:02:41]} 9. O-O {[%clk 0:02:50]}  Ne8 {[%clk 0:02:36]} 10. Qe1 {[%clk 0:02:48]}  Rb8 {[%clk 0:02:32]} 11. b3 {[%clk 0:02:45]}  Nc7 {[%clk 0:02:25]} 12. e5 {[%clk 0:02:35]}  Ne6 {[%clk 0:02:10]} 13. Be3 {[%clk 0:02:34]}  d5 {[%clk 0:02:02]} 14. Na4 {[%clk 0:02:33]}  c4 {[%clk 0:01:56]} 15. dxc4 {[%clk 0:02:27]}  d4 {[%clk 0:01:32]} 16. Rd1 {[%clk 0:02:26]}  c5 {[%clk 0:01:31]} 17. c3 {[%clk 0:02:27]}  Bd7 {[%clk 0:01:12]} 18. cxd4 {[%clk 0:02:24]}  Bxa4 {[%clk 0:01:11]} 19. bxa4 {[%clk 0:02:24]}  cxd4 {[%clk 0:01:10]} 20. Nxd4 {[%clk 0:02:23]}  Nxd4 {[%clk 0:01:08]} 21. Rxd4 {[%clk 0:02:24]}  Qc7 {[%clk 0:01:08]} 22. Qc3 {[%clk 0:02:14]}  Rfc8 {[%clk 0:01:08]} 23. c5 {[%clk 0:02:15]}  Qc6 {[%clk 0:01:03]} 24. Rfd1 {[%clk 0:02:12]}  Bf8 {[%clk 0:00:59]} 25. Rd7 {[%clk 0:02:04]}  a6 {[%clk 0:00:59]} 26. Qc4 {[%clk 0:01:46]}  Rb2 {[%clk 0:00:55]} 27. R7d2 {[%clk 0:01:44]}  Rcb8 {[%clk 0:00:55]} 28. e6 {[%clk 0:01:24]}  fxe6 {[%clk 0:00:49]} 29. Rxb2 {[%clk 0:01:14]}  Rxb2 {[%clk 0:00:48]} 30. Rd2 {[%clk 0:01:15]}  Rb1+ {[%clk 0:00:44]} 31. Kh2 {[%clk 0:01:15]}  Kf7 {[%clk 0:00:42]} 32. Rf2 {[%clk 0:00:54]}  Bg7 {[%clk 0:00:37]} 33. f5 {[%clk 0:00:53]}  Bf6 {[%clk 0:00:16]} 34. fxg6+ {[%clk 0:00:49]}  hxg6 {[%clk 0:00:16]} 35. Bf4 {[%clk 0:00:42]}  Kg7 {[%clk 0:00:15]} 36. Bg3 {[%clk 0:00:38]}  e5 {[%clk 0:00:14]} 37. Rd2 {[%clk 0:00:33]}  Rb8 {[%clk 0:00:09]} 38. Qd5 {[%clk 0:00:26]}  Rc8 {[%clk 0:00:09]} 39. Qxc6 {[%clk 0:00:21]}  Rxc6 {[%clk 0:00:09]} 40. Bf2 {[%clk 0:00:22]}  Kf7 {[%clk 0:00:09]} 41. Kg3 {[%clk 0:00:21]}  Ke6 {[%clk 0:00:09]} 42. Kf3 {[%clk 0:00:22]}  Bg5 {[%clk 0:00:08]} 43. Rd1 {[%clk 0:00:18]}  Kf5 {[%clk 0:00:04]} 44. g4+ {[%clk 0:00:18]}  Ke6 {[%clk 0:00:04]} 45. Ke4 {[%clk 0:00:19]}  Bf4 {[%clk 0:00:04]} 46. Rb1 {[%clk 0:00:18]}  Kd7 {[%clk 0:00:02]} 47. Rb7+ {[%clk 0:00:18]}  Rc7 {[%clk 0:00:02]} 48. Rxc7+ {[%clk 0:00:18]}  Kxc7 {[%clk 0:00:03]} 49. Kd5 {[%clk 0:00:19]}  e4 {[%clk 0:00:02]} 50. Kxe4 {[%clk 0:00:19]}  Bc1 {[%clk 0:00:02]} 51. Kd5 {[%clk 0:00:19]}  Kd7 {[%clk 0:00:02]} 52. c6+ {[%clk 0:00:19]}  Kd8 {[%clk 0:00:03]} 53. Bg3 {[%clk 0:00:18]}  Ba3 {[%clk 0:00:03]} 54. Ke6 {[%clk 0:00:18]}  Kc8 {[%clk 0:00:03]} 55. h4 {[%clk 0:00:17]}  Bb4 {[%clk 0:00:02]} 56. h5 {[%clk 0:00:17]}  gxh5 {[%clk 0:00:02]} 57. gxh5 {[%clk 0:00:18]} 1-0


[Site "https://www.chess.com"]

[Event "Titled Tuesday Blitz August 17 2021"]
[White "Turner, Max N"]
[Black "Maximov, Dmitry"]
[WhiteFideId "447722"]
[BlackFideId "14105659"]
[WhiteElo "2078"]
[BlackElo "2494"]
[Result "0-1"]
[Round "03"]
[TimeControl "180+1"]
[Date "2021.08.17"]
[WhiteClock "0:00:07"]
[BlackClock "0:00:07"]

1. d4 {[%clk 0:03:00]}  Nf6 {[%clk 0:02:59]} 2. c4 {[%clk 0:03:01]}  g6 {[%clk 0:03:00]} 3. g3 {[%clk 0:03:01]}  Bg7 {[%clk 0:03:00]} 4. Bg2 {[%clk 0:03:02]}  O-O {[%clk 0:03:01]} 5. Nc3 {[%clk 0:03:02]}  d6 {[%clk 0:03:01]} 6. Nf3 {[%clk 0:03:03]}  Nbd7 {[%clk 0:03:02]} 7. O-O {[%clk 0:03:03]}  e5 {[%clk 0:03:02]} 8. h3 {[%clk 0:03:04]}  c6 {[%clk 0:03:02]} 9. e4 {[%clk 0:03:04]}  Re8 {[%clk 0:03:02]} 10. d5 {[%clk 0:03:02]}  cxd5 {[%clk 0:03:02]} 11. cxd5 {[%clk 0:03:02]}  Nc5 {[%clk 0:03:02]} 12. Re1 {[%clk 0:02:56]}  a5 {[%clk 0:03:03]} 13. Qc2 {[%clk 0:02:50]}  Bd7 {[%clk 0:03:00]} 14. Be3 {[%clk 0:02:45]}  Rc8 {[%clk 0:02:56]} 15. Nd2 {[%clk 0:02:42]}  b5 {[%clk 0:02:56]} 16. Bxc5 {[%clk 0:02:33]}  Rxc5 {[%clk 0:02:55]} 17. Qd1 {[%clk 0:02:29]}  b4 {[%clk 0:02:54]} 18. Ne2 {[%clk 0:02:29]}  Qb6 {[%clk 0:02:46]} 19. Nc1 {[%clk 0:02:13]}  Rec8 {[%clk 0:02:43]} 20. Nd3 {[%clk 0:02:11]}  R5c7 {[%clk 0:02:41]} 21. b3 {[%clk 0:02:08]}  Bb5 {[%clk 0:02:38]} 22. Nb2 {[%clk 0:02:08]}  Rc3 {[%clk 0:02:35]} 23. Nbc4 {[%clk 0:01:56]}  Qc5 {[%clk 0:02:34]} 24. Rc1 {[%clk 0:01:27]}  Bh6 {[%clk 0:02:34]} 25. Rc2 {[%clk 0:00:40]}  Kg7 {[%clk 0:02:05]} 26. Re2 {[%clk 0:00:13]}  Rxc2 {[%clk 0:01:47]} 27. Qxc2 {[%clk 0:00:13]}  Bxd2 {[%clk 0:01:46]} 28. Qxd2 {[%clk 0:00:08]}  Bxc4 {[%clk 0:01:45]} 29. bxc4 {[%clk 0:00:08]}  Qxc4 {[%clk 0:01:46]} 30. f4 {[%clk 0:00:08]}  Nd7 {[%clk 0:01:40]} 31. Kh2 {[%clk 0:00:05]}  Qc3 {[%clk 0:01:39]} 32. Qd1 {[%clk 0:00:04]}  h5 {[%clk 0:01:32]} 33. Rf2 {[%clk 0:00:04]}  h4 {[%clk 0:01:25]} 34. gxh4 {[%clk 0:00:03]}  exf4 {[%clk 0:01:25]} 35. Rxf4 {[%clk 0:00:02]}  Qe5 {[%clk 0:01:21]} 36. Qf1 {[%clk 0:00:02]}  Nf6 {[%clk 0:01:16]} 37. Kh1 {[%clk 0:00:03]}  Rc2 {[%clk 0:01:14]} 38. h5 {[%clk 0:00:04]}  gxh5 {[%clk 0:00:59]} 39. Rf5 {[%clk 0:00:04]}  Qc3 {[%clk 0:00:58]} 40. Qf4 {[%clk 0:00:04]}  Qe1+ {[%clk 0:00:17]} 41. Kh2 {[%clk 0:00:04]}  Rxg2+ {[%clk 0:00:15]} 42. Kxg2 {[%clk 0:00:04]}  Qxe4+ {[%clk 0:00:16]} 43. Qxe4 {[%clk 0:00:03]}  Nxe4 {[%clk 0:00:17]} 44. Rxh5 {[%clk 0:00:03]}  Nc3 {[%clk 0:00:17]} 45. Rg5+ {[%clk 0:00:03]}  Kf6 {[%clk 0:00:17]} 46. Rg3 {[%clk 0:00:03]}  Nxa2 {[%clk 0:00:17]} 47. Rf3+ {[%clk 0:00:04]}  Ke7 {[%clk 0:00:16]} 48. h4 {[%clk 0:00:05]}  Nc3 {[%clk 0:00:13]} 49. h5 {[%clk 0:00:06]}  Kf8 {[%clk 0:00:08]} 50. Rg3 {[%clk 0:00:06]}  Ne4 {[%clk 0:00:07]} 51. h6 {[%clk 0:00:07]}  Nxg3 {[%clk 0:00:07]} 0-1


[Site "https://www.chess.com"]

[Event "Titled Tuesday Blitz August 17 2021"]
[White "Urazayev, Arystanbek"]
[Black "Lee, Qing Aun"]
[WhiteFideId "13709810"]
[BlackFideId "5804167"]
[WhiteElo "2784"]
[BlackElo "2544"]
[Result "1-0"]
[Round "03"]
[TimeControl "180+1"]
[Date "2021.08.17"]
[WhiteClock "0:00:10"]
[BlackClock "0:00:17"]

1. c4 {[%clk 0:03:00]}  Nf6 {[%clk 0:02:53]} 2. Nc3 {[%clk 0:03:00]}  e6 {[%clk 0:02:52]} 3. d4 {[%clk 0:03:00]}  d5 {[%clk 0:02:52]} 4. Nf3 {[%clk 0:02:59]}  Be7 {[%clk 0:02:52]} 5. g3 {[%clk 0:02:59]}  O-O {[%clk 0:02:49]} 6. Bg2 {[%clk 0:03:00]}  Nbd7 {[%clk 0:02:47]} 7. O-O {[%clk 0:02:52]}  c6 {[%clk 0:02:33]} 8. b3 {[%clk 0:02:47]}  Ne4 {[%clk 0:02:04]} 9. Nxe4 {[%clk 0:02:36]}  dxe4 {[%clk 0:02:04]} 10. Ne5 {[%clk 0:02:35]}  f5 {[%clk 0:02:02]} 11. Bb2 {[%clk 0:02:33]}  Bf6 {[%clk 0:01:59]} 12. f3 {[%clk 0:02:19]}  exf3 {[%clk 0:01:48]} 13. Nxf3 {[%clk 0:02:08]}  Qe7 {[%clk 0:01:45]} 14. Qd2 {[%clk 0:01:40]}  e5 {[%clk 0:01:40]} 15. d5 {[%clk 0:01:31]}  cxd5 {[%clk 0:01:39]} 16. Qxd5+ {[%clk 0:01:31]}  Kh8 {[%clk 0:01:39]} 17. Rad1 {[%clk 0:01:18]}  e4 {[%clk 0:01:39]} 18. Bxf6 {[%clk 0:01:10]}  Nxf6 {[%clk 0:01:38]} 19. Qe5 {[%clk 0:01:11]}  Qxe5 {[%clk 0:01:23]} 20. Nxe5 {[%clk 0:01:12]}  Be6 {[%clk 0:01:23]} 21. c5 {[%clk 0:00:43]}  Rac8 {[%clk 0:01:23]} 22. Rd6 {[%clk 0:00:40]}  Rfe8 {[%clk 0:01:16]} 23. b4 {[%clk 0:00:31]}  Nd5 {[%clk 0:00:59]} 24. Bh3 {[%clk 0:00:21]}  Ne3 {[%clk 0:00:55]} 25. Rc1 {[%clk 0:00:17]}  Bxa2 {[%clk 0:00:51]} 26. Nd7 {[%clk 0:00:16]}  Be6 {[%clk 0:00:41]} 27. b5 {[%clk 0:00:15]}  Nc4 {[%clk 0:00:25]} 28. Rxe6 {[%clk 0:00:15]}  Rxe6 {[%clk 0:00:24]} 29. Rxc4 {[%clk 0:00:16]}  g6 {[%clk 0:00:22]} 30. g4 {[%clk 0:00:16]}  Re7 {[%clk 0:00:20]} 31. c6 {[%clk 0:00:16]}  bxc6 {[%clk 0:00:19]} 32. bxc6 {[%clk 0:00:17]}  f4 {[%clk 0:00:19]} 33. g5 {[%clk 0:00:17]}  Kg7 {[%clk 0:00:18]} 34. Nf6 {[%clk 0:00:10]}  Rcc7 {[%clk 0:00:18]} 35. Nd5 {[%clk 0:00:10]}  f3 {[%clk 0:00:18]} 36. Nxe7 {[%clk 0:00:10]}  fxe2 {[%clk 0:00:17]} 37. Kf2 {[%clk 0:00:10]}  Rxe7 {[%clk 0:00:17]} 38. c7 {[%clk 0:00:10]} 1-0


[Site "https://www.chess.com"]

[Event "Titled Tuesday Blitz August 17 2021"]
[White "Wagh Suyog"]
[Black "Nakamura, Hikaru"]
[WhiteFideId "25071688"]
[BlackFideId "2016192"]
[WhiteElo "2219"]
[BlackElo "2900"]
[Result "0-1"]
[Round "03"]
[TimeControl "180+1"]
[Date "2021.08.17"]
[WhiteClock "0:00:35"]
[BlackClock "0:02:09"]

1. d4 {[%clk 0:03:00]}  g6 {[%clk 0:02:59]} 2. c4 {[%clk 0:02:59]}  Bg7 {[%clk 0:02:58]} 3. g3 {[%clk 0:02:59]}  d6 {[%clk 0:02:58]} 4. Bg2 {[%clk 0:02:59]}  Nc6 {[%clk 0:02:59]} 5. Nf3 {[%clk 0:02:58]}  Bd7 {[%clk 0:02:59]} 6. O-O {[%clk 0:02:58]}  Qc8 {[%clk 0:02:59]} 7. Re1 {[%clk 0:02:51]}  Bh3 {[%clk 0:02:59]} 8. Bh1 {[%clk 0:02:51]}  h5 {[%clk 0:02:58]} 9. Nc3 {[%clk 0:02:51]}  h4 {[%clk 0:02:59]} 10. e4 {[%clk 0:02:30]}  hxg3 {[%clk 0:02:52]} 11. hxg3 {[%clk 0:02:28]}  Bg4 {[%clk 0:02:50]} 12. Be3 {[%clk 0:02:21]}  e5 {[%clk 0:02:50]} 13. d5 {[%clk 0:02:05]}  Nd4 {[%clk 0:02:49]} 14. Bxd4 {[%clk 0:02:03]}  exd4 {[%clk 0:02:50]} 15. Nb5 {[%clk 0:02:04]}  a6 {[%clk 0:02:50]} 16. Na3 {[%clk 0:01:53]}  Ne7 {[%clk 0:02:49]} 17. Qd3 {[%clk 0:01:42]}  c5 {[%clk 0:02:48]} 18. dxc6 {[%clk 0:01:07]}  Nxc6 {[%clk 0:02:48]} 19. Bg2 {[%clk 0:01:04]}  Bxf3 {[%clk 0:02:43]} 20. Qxf3 {[%clk 0:01:02]}  Ne5 {[%clk 0:02:44]} 21. Qd1 {[%clk 0:01:02]}  d3 {[%clk 0:02:44]} 22. Qd2 {[%clk 0:00:52]}  Qc5 {[%clk 0:02:41]} 23. Rad1 {[%clk 0:00:43]}  Rc8 {[%clk 0:02:14]} 24. Re3 {[%clk 0:00:42]}  Bh6 {[%clk 0:02:12]} 25. f4 {[%clk 0:00:34]}  Ng4 {[%clk 0:02:11]} 26. Re1 {[%clk 0:00:35]}  Nxe3 {[%clk 0:02:10]} 27. Rxe3 {[%clk 0:00:35]}  g5 {[%clk 0:02:09]} 0-1


[Site "https://www.chess.com"]

[Event "Titled Tuesday Blitz August 17 2021"]
[White "Wagner, Dennis"]
[Black "Manukyan, Sargis A."]
[WhiteFideId "24650684"]
[BlackFideId "13303970"]
[WhiteElo "2355"]
[BlackElo "2187"]
[Result "1-0"]
[Round "03"]
[TimeControl "180+1"]
[Date "2021.08.17"]
[WhiteClock "0:00:42"]
[BlackClock "0:01:22"]

1. d4 {[%clk 0:03:00]}  d5 {[%clk 0:03:00]} 2. c4 {[%clk 0:03:00]}  e6 {[%clk 0:03:00]} 3. Nf3 {[%clk 0:02:59]}  Nf6 {[%clk 0:03:00]} 4. Bg5 {[%clk 0:02:58]}  Be7 {[%clk 0:03:00]} 5. e3 {[%clk 0:02:57]}  O-O {[%clk 0:03:00]} 6. Qc2 {[%clk 0:02:57]}  h6 {[%clk 0:03:00]} 7. Bxf6 {[%clk 0:02:57]}  Bxf6 {[%clk 0:03:01]} 8. Nc3 {[%clk 0:02:57]}  b6 {[%clk 0:02:58]} 9. h4 {[%clk 0:02:50]}  g6 {[%clk 0:02:56]} 10. O-O-O {[%clk 0:02:32]}  Bb7 {[%clk 0:02:50]} 11. cxd5 {[%clk 0:02:29]}  exd5 {[%clk 0:02:49]} 12. Ne5 {[%clk 0:02:30]}  c5 {[%clk 0:02:46]} 13. f4 {[%clk 0:02:09]}  cxd4 {[%clk 0:02:46]} 14. exd4 {[%clk 0:02:06]}  Nc6 {[%clk 0:02:43]} 15. h5 {[%clk 0:01:58]}  g5 {[%clk 0:02:40]} 16. a3 {[%clk 0:01:38]}  Rc8 {[%clk 0:02:27]} 17. Kb1 {[%clk 0:01:36]}  gxf4 {[%clk 0:02:21]} 18. Qf5 {[%clk 0:01:35]}  Kg7 {[%clk 0:02:09]} 19. Bd3 {[%clk 0:01:20]}  Rh8 {[%clk 0:02:08]} 20. Nxf7 {[%clk 0:01:09]}  Ne7 {[%clk 0:01:57]} 21. Nxd8 {[%clk 0:01:03]}  Nxf5 {[%clk 0:01:55]} 22. Ne6+ {[%clk 0:01:03]}  Kf7 {[%clk 0:01:52]} 23. Bxf5 {[%clk 0:01:04]}  Rcg8 {[%clk 0:01:50]} 24. Nxf4 {[%clk 0:01:02]}  Rg5 {[%clk 0:01:46]} 25. Be6+ {[%clk 0:01:02]}  Ke8 {[%clk 0:01:43]} 26. Bxd5 {[%clk 0:01:01]}  Bxd5 {[%clk 0:01:42]} 27. Ncxd5 {[%clk 0:01:01]}  Bd8 {[%clk 0:01:42]} 28. Rhe1+ {[%clk 0:01:01]}  Kd7 {[%clk 0:01:42]} 29. Ng6 {[%clk 0:00:57]}  Rg8 {[%clk 0:01:39]} 30. Ndf4 {[%clk 0:00:58]}  Rf5 {[%clk 0:01:33]} 31. Re4 {[%clk 0:00:53]}  Bg5 {[%clk 0:01:33]} 32. g3 {[%clk 0:00:52]}  Bxf4 {[%clk 0:01:27]} 33. gxf4 {[%clk 0:00:44]}  Rxh5 {[%clk 0:01:27]} 34. Ne5+ {[%clk 0:00:44]}  Kd6 {[%clk 0:01:27]} 35. d5 {[%clk 0:00:43]}  Rf5 {[%clk 0:01:25]} 36. Nc4+ {[%clk 0:00:43]}  Kd7 {[%clk 0:01:25]} 37. d6 {[%clk 0:00:44]}  Rgf8 {[%clk 0:01:22]} 38. Ne5+ {[%clk 0:00:43]}  Kd8 {[%clk 0:01:22]} 39. d7 {[%clk 0:00:42]} 1-0


[Site "https://www.chess.com"]

[Event "Titled Tuesday Blitz August 17 2021"]
[White "Woodward, Andy"]
[Black "Chigaev, Maksim"]
[WhiteFideId "30953499"]
[BlackFideId "4108116"]
[WhiteElo "2137"]
[BlackElo "2579"]
[Result "0-1"]
[Round "03"]
[TimeControl "180+1"]
[Date "2021.08.17"]
[WhiteClock "0:00:15"]
[BlackClock "0:00:14"]

1. d4 {[%clk 0:03:00]}  Nf6 {[%clk 0:02:59]} 2. c4 {[%clk 0:03:01]}  g6 {[%clk 0:02:59]} 3. Nc3 {[%clk 0:03:00]}  d5 {[%clk 0:03:00]} 4. cxd5 {[%clk 0:03:01]}  Nxd5 {[%clk 0:03:00]} 5. e4 {[%clk 0:03:02]}  Nxc3 {[%clk 0:03:01]} 6. bxc3 {[%clk 0:03:03]}  Bg7 {[%clk 0:03:02]} 7. Nf3 {[%clk 0:03:03]}  c5 {[%clk 0:03:02]} 8. Rb1 {[%clk 0:03:03]}  O-O {[%clk 0:03:02]} 9. Be2 {[%clk 0:03:02]}  b6 {[%clk 0:02:57]} 10. O-O {[%clk 0:03:00]}  Bb7 {[%clk 0:02:57]} 11. d5 {[%clk 0:03:00]}  Bxc3 {[%clk 0:02:57]} 12. Bc4 {[%clk 0:02:59]}  Nd7 {[%clk 0:02:55]} 13. Bh6 {[%clk 0:02:53]}  Bg7 {[%clk 0:02:50]} 14. Bxg7 {[%clk 0:02:52]}  Kxg7 {[%clk 0:02:51]} 15. e5 {[%clk 0:02:52]}  f6 {[%clk 0:02:51]} 16. Re1 {[%clk 0:02:39]}  fxe5 {[%clk 0:02:39]} 17. Ng5 {[%clk 0:02:33]}  Rf6 {[%clk 0:02:31]} 18. Ne6+ {[%clk 0:02:33]}  Rxe6 {[%clk 0:02:31]} 19. dxe6 {[%clk 0:02:34]}  Nf6 {[%clk 0:02:29]} 20. Qxd8 {[%clk 0:02:34]}  Rxd8 {[%clk 0:02:29]} 21. Rbd1 {[%clk 0:02:35]}  Rd4 {[%clk 0:02:13]} 22. Bb3 {[%clk 0:02:23]}  Ne4 {[%clk 0:02:05]} 23. f3 {[%clk 0:02:22]}  Nd2 {[%clk 0:01:59]} 24. Bc2 {[%clk 0:02:17]}  Kf6 {[%clk 0:01:50]} 25. Re2 {[%clk 0:02:15]}  Nc4 {[%clk 0:01:48]} 26. Rde1 {[%clk 0:02:06]}  Bd5 {[%clk 0:01:37]} 27. Bb3 {[%clk 0:02:03]}  Bxe6 {[%clk 0:01:36]} 28. g4 {[%clk 0:01:33]}  g5 {[%clk 0:00:59]} 29. Bxc4 {[%clk 0:01:30]}  Bxc4 {[%clk 0:01:00]} 30. Rxe5 {[%clk 0:01:30]}  e6 {[%clk 0:00:59]} 31. h4 {[%clk 0:01:30]}  h6 {[%clk 0:00:59]} 32. hxg5+ {[%clk 0:01:30]}  hxg5 {[%clk 0:01:00]} 33. R5e3 {[%clk 0:01:29]}  a5 {[%clk 0:00:56]} 34. a3 {[%clk 0:01:21]}  a4 {[%clk 0:00:55]} 35. Kf2 {[%clk 0:01:20]}  b5 {[%clk 0:00:54]} 36. Rh1 {[%clk 0:01:15]}  Bd5 {[%clk 0:00:48]} 37. Rh6+ {[%clk 0:01:06]}  Kf7 {[%clk 0:00:48]} 38. Rh5 {[%clk 0:00:56]}  b4 {[%clk 0:00:46]} 39. Rh7+ {[%clk 0:00:51]}  Kg6 {[%clk 0:00:46]} 40. Rc7 {[%clk 0:00:51]}  Rd2+ {[%clk 0:00:25]} 41. Kg3 {[%clk 0:00:44]}  b3 {[%clk 0:00:17]} 42. Rxc5 {[%clk 0:00:44]}  b2 {[%clk 0:00:13]} 43. Rb5 {[%clk 0:00:43]}  Bb3 {[%clk 0:00:13]} 44. Rexb3 {[%clk 0:00:40]}  axb3 {[%clk 0:00:14]} 45. Rxb3 {[%clk 0:00:41]}  e5 {[%clk 0:00:15]} 46. a4 {[%clk 0:00:40]}  e4 {[%clk 0:00:15]} 47. a5 {[%clk 0:00:17]}  e3 {[%clk 0:00:12]} 48. a6 {[%clk 0:00:17]}  e2 {[%clk 0:00:12]} 49. Kf2 {[%clk 0:00:16]}  Rd1 {[%clk 0:00:12]} 50. Rb6+ {[%clk 0:00:12]}  Kf7 {[%clk 0:00:12]} 51. Rb7+ {[%clk 0:00:11]}  Ke6 {[%clk 0:00:12]} 52. Rb6+ {[%clk 0:00:10]}  Kd7 {[%clk 0:00:12]} 53. Kxe2 {[%clk 0:00:09]}  b1=Q {[%clk 0:00:12]} 54. Rxb1 {[%clk 0:00:10]}  Rxb1 {[%clk 0:00:12]} 55. Ke3 {[%clk 0:00:09]}  Rb4 {[%clk 0:00:10]} 56. a7 {[%clk 0:00:09]}  Ra4 {[%clk 0:00:11]} 57. a8=Q {[%clk 0:00:08]}  Rxa8 {[%clk 0:00:11]} 58. Ke4 {[%clk 0:00:09]}  Ke6 {[%clk 0:00:11]} 59. f4 {[%clk 0:00:10]}  Ra4+ {[%clk 0:00:11]} 60. Kf3 {[%clk 0:00:10]}  Rxf4+ {[%clk 0:00:12]} 61. Kg3 {[%clk 0:00:11]}  Ke5 {[%clk 0:00:13]} 62. Kh3 {[%clk 0:00:12]}  Rf3+ {[%clk 0:00:12]} 63. Kg2 {[%clk 0:00:12]}  Kf4 {[%clk 0:00:13]} 64. Kg1 {[%clk 0:00:13]}  Kxg4 {[%clk 0:00:13]} 65. Kh2 {[%clk 0:00:14]}  Rf2+ {[%clk 0:00:13]} 66. Kg1 {[%clk 0:00:14]}  Kg3 {[%clk 0:00:13]} 67. Kh1 {[%clk 0:00:15]}  Rf1# {[%clk 0:00:14]} 0-1


[Site "https://www.chess.com"]

[Event "Titled Tuesday Blitz August 17 2021"]
[White "AleksanderHnydiuk"]
[Black "Moskalenko, Alexander"]
[BlackFideId "4155351"]
[WhiteElo "2610"]
[BlackElo "2495"]
[Result "0-1"]
[Round "04"]
[TimeControl "180+1"]
[Date "2021.08.17"]
[WhiteClock "0:01:08"]
[BlackClock "0:00:09"]

1. Nf3 {[%clk 0:03:00]}  g6 {[%clk 0:00:38]} 2. c4 {[%clk 0:03:00]}  Bg7 {[%clk 0:00:38]} 3. d4 {[%clk 0:03:00]}  c5 {[%clk 0:00:39]} 4. e4 {[%clk 0:03:00]}  cxd4 {[%clk 0:00:38]} 5. Nxd4 {[%clk 0:03:00]}  Nc6 {[%clk 0:00:39]} 6. Be3 {[%clk 0:03:01]}  Qb6 {[%clk 0:00:38]} 7. Nb3 {[%clk 0:02:58]}  Qb4+ {[%clk 0:00:36]} 8. Bd2 {[%clk 0:02:58]}  Qb6 {[%clk 0:00:34]} 9. Nc3 {[%clk 0:02:57]}  Nf6 {[%clk 0:00:33]} 10. Be2 {[%clk 0:02:56]}  d6 {[%clk 0:00:33]} 11. O-O {[%clk 0:02:56]}  O-O {[%clk 0:00:32]} 12. Nd5 {[%clk 0:02:55]}  Qd8 {[%clk 0:00:32]} 13. Rc1 {[%clk 0:02:49]}  Nxe4 {[%clk 0:00:32]} 14. Bd3 {[%clk 0:02:29]}  Nxd2 {[%clk 0:00:31]} 15. Qxd2 {[%clk 0:02:30]}  Ne5 {[%clk 0:00:29]} 16. Rfe1 {[%clk 0:02:27]}  e6 {[%clk 0:00:28]} 17. Nc3 {[%clk 0:02:24]}  Bd7 {[%clk 0:00:27]} 18. Bf1 {[%clk 0:02:20]}  Bc6 {[%clk 0:00:25]} 19. Rcd1 {[%clk 0:02:14]}  Rc8 {[%clk 0:00:18]} 20. Ne4 {[%clk 0:01:49]}  Bxe4 {[%clk 0:00:16]} 21. Rxe4 {[%clk 0:01:50]}  d5 {[%clk 0:00:15]} 22. cxd5 {[%clk 0:01:49]}  exd5 {[%clk 0:00:16]} 23. Qxd5 {[%clk 0:01:42]}  Qxd5 {[%clk 0:00:14]} 24. Rxd5 {[%clk 0:01:43]}  Rfd8 {[%clk 0:00:11]} 25. Rdxe5 {[%clk 0:01:35]}  Bxe5 {[%clk 0:00:11]} 26. Rxe5 {[%clk 0:01:36]}  Rd1 {[%clk 0:00:11]} 27. g3 {[%clk 0:01:36]}  Rb1 {[%clk 0:00:11]} 28. Re2 {[%clk 0:01:33]}  b6 {[%clk 0:00:10]} 29. Rd2 {[%clk 0:01:32]}  a5 {[%clk 0:00:09]} 30. Kg2 {[%clk 0:01:30]}  a4 {[%clk 0:00:08]} 31. Nd4 {[%clk 0:01:30]}  Rd8 {[%clk 0:00:08]} 32. a3 {[%clk 0:01:20]}  h5 {[%clk 0:00:07]} 33. h4 {[%clk 0:01:19]}  Re1 {[%clk 0:00:07]} 34. Kf3 {[%clk 0:01:17]}  Rxf1 {[%clk 0:00:07]} 35. Ke2 {[%clk 0:01:13]}  Rb1 {[%clk 0:00:06]} 36. Ke3 {[%clk 0:01:13]}  Re1+ {[%clk 0:00:06]} 37. Kf3 {[%clk 0:01:12]}  Re7 {[%clk 0:00:06]} 38. Rd3 {[%clk 0:01:10]}  Ree8 {[%clk 0:00:06]} 39. Rd2 {[%clk 0:01:09]}  b5 {[%clk 0:00:07]} 40. Rd3 {[%clk 0:01:09]}  Rd5 {[%clk 0:00:07]} 41. Rd2 {[%clk 0:01:09]}  Ree5 {[%clk 0:00:07]} 42. Rd3 {[%clk 0:01:09]}  Kf8 {[%clk 0:00:08]} 43. Rd2 {[%clk 0:01:09]}  Ke8 {[%clk 0:00:08]} 44. Rd3 {[%clk 0:01:09]}  Kd7 {[%clk 0:00:09]} 45. Rd2 {[%clk 0:01:09]}  f5 {[%clk 0:00:09]} 46. Rd3 {[%clk 0:01:08]}  Re4 {[%clk 0:00:09]} 47. Rd2 {[%clk 0:01:08]}  Rdxd4 {[%clk 0:00:09]} 0-1


[Site "https://www.chess.com"]